fUST/lending_fUST_20250521
["ID","MTS","AMOUNT","RATE_DAILY","PERIOD"]
[361797154,1747809048638,-151.0,0.00018,2]
[361797155,1747809048648,-151.0,0.00018,2]
[361797156,1747809048658,-160.0,0.00018005,2]
[361797157,1747809048668,-160.0,0.00018005,2]
[361797158,1747809048678,-160.0,0.00018005,2]
[361797159,1747809048688,-151.0,0.00018029,2]
[361797160,1747809048698,-151.0,0.00018029,2]
[361797161,1747809048709,-151.0,0.0001804,2]
[361797162,1747809048720,-212.832293,0.0001804,2]
[361797163,1747809048730,-212.832293,0.0001804,2]
[361797164,1747809048740,-151.0,0.0001804,2]
[361797165,1747809048750,-256.896871,0.0001804,2]
[361797166,1747809048761,-256.896871,0.0001804,2]
[361797167,1747809048771,-319.876432,0.0001804,2]
[361797168,1747809048781,-319.876432,0.0001804,2]
[361797169,1747809048791,-151.0,0.0001804,2]
[361797170,1747809048802,-151.0,0.0001804,2]
[361797171,1747809048812,-166.81369663,0.00018071,2]
[361797172,1747809048823,-195.58188356,0.00018071,2]
[361797173,1747809048833,-300.58,0.00018072,3]
[361797174,1747809048843,-601.18,0.00018082,3]
[361797175,1747809048853,-894.64583333,0.00018082,3]
[361797176,1747809048863,-6477.87216138,0.00018082,3]
[361797177,1747809048873,-314.5140147,0.00018082,3]
[361797178,1747809048882,-658.65,0.00018082,2]
[361797179,1747809048892,-430.0,0.00018082,2]
[361797180,1747809048902,-695.7,0.00018082,2]
[361797181,1747809048912,-543.41,0.00018082,2]
[361797182,1747809048922,-612.65,0.00018082,2]
[361797183,1747809048933,-517.88332529,0.00018082,2]
[361797184,1747809048943,-430.0,0.00018082,2]
[361797185,1747809048953,-429.76,0.00018082,2]
[361797186,1747809048963,-430.0,0.00018082,2]
[361797187,1747809048974,-430.0,0.00018082,2]
[361797188,1747809048984,-430.0,0.00018082,2]
[361797189,1747809048994,-430.0,0.00018082,2]
[361797190,1747809049004,-430.0,0.00018082,2]
[361797191,1747809049015,-1718.91621025,0.000181,2]
[361797192,1747809049025,-151.0,0.000181,2]
[361797193,1747809049035,-151.0,0.000181,2]
[361797194,1747809049046,-420.965103,0.000181,2]
[361797195,1747809049055,-420.965103,0.000181,2]
[361797196,1747809049065,-200.10215959,0.000182,2]
[361797197,1747809049076,-202.190636,0.00018281,2]
[361797198,1747809049087,-202.190636,0.00018281,2]
[361797199,1747809049098,-255.335323,0.00018281,2]
[361797200,1747809049109,-255.335323,0.00018281,2]
[361797201,1747809049120,-587.0,0.00018281,2]
[361797202,1747809049131,-587.0,0.00018281,2]
[361797203,1747809049142,-151.0,0.00018295,2]
[361797204,1747809049152,-2928.52894389,0.00018314,2]
[361797205,1747809049163,-160.67606443,0.00018321,2]
[361797206,1747809049173,-658.65,0.00018356,2]
[361797207,1747809049184,-430.0,0.00018356,2]
[361797208,1747809049199,-695.7,0.00018356,2]
[361797209,1747809049213,-612.65,0.00018356,2]
[361797210,1747809049223,-430.0,0.00018356,2]
[361797211,1747809049234,-430.0,0.00018356,2]
[361797212,1747809049244,-151.0,0.00018356,2]
[361797213,1747809049255,-430.0,0.00018356,2]
[361797214,1747809049265,-151.0,0.00018356,2]
[361797215,1747809049276,-430.0,0.00018356,2]
[361797216,1747809049286,-160.191233,0.00018356,2]
[361797217,1747809049296,-160.191233,0.00018356,2]
[361797218,1747809049306,-430.0,0.00018356,2]
[361797219,1747809049316,-151.0,0.00018356,2]
[361797220,1747809049327,-151.0,0.00018356,2]
[361797221,1747809049338,-151.0,0.00018356,2]
[361797222,1747809049348,-430.0,0.00018356,2]
[361797223,1747809049359,-370.8652334,0.00018376,2]
[361797224,1747809049384,-250.0,0.000184,2]
[361797225,1747809049401,-250.0,0.000184,2]
[361797226,1747809049418,-250.0,0.000184,2]
[361797227,1747809049433,-194.666865,0.000184,2]
[361797228,1747809049450,-194.666865,0.000184,2]
[361797229,1747809049463,-155.676329,0.00018452,2]
[361797230,1747809049475,-151.0,0.00018452,2]
[361797231,1747809049487,-151.0,0.00018452,2]
[361797232,1747809049501,-151.0,0.00018452,2]
[361797233,1747809049513,-151.0,0.00018452,2]
[361797234,1747809049525,-151.0,0.00018452,2]
[361797235,1747809049538,-151.0,0.00018452,2]
[361797236,1747809049551,-151.0,0.00018452,2]
[361797237,1747809049563,-151.0,0.0001855,2]
[361797238,1747809049576,-151.0,0.0001855,2]
[361797239,1747809049588,-307.00777753,0.0001855,2]
[361797240,1747809049601,-658.65,0.0001863,2]
[361797241,1747809049613,-485.49,0.0001863,2]
[361797242,1747809049626,-695.7,0.0001863,2]
[361797243,1747809049640,-256.896871,0.0001863,2]
[361797244,1747809049652,-256.896871,0.0001863,2]
[361797245,1747809049667,-612.65,0.0001863,2]
[361797246,1747809049679,-319.876432,0.0001863,2]
[361797247,1747809049694,-319.876432,0.0001863,2]
[361797248,1747809049709,-430.0,0.0001863,2]
[361797249,1747809049722,-151.0,0.0001863,2]
[361797250,1747809049735,-151.0,0.0001863,2]
[361797251,1747809049748,-430.0,0.0001863,2]
[361797252,1747809049762,-430.0,0.0001863,2]
[361797253,1747809049774,-430.0,0.0001863,2]
[361797254,1747809049788,-430.0,0.0001863,2]
[361797255,1747809049800,-2928.52894389,0.00018659,2]
[361797256,1747809049811,-201.22094791,0.00018843,2]
[361797257,1747809049821,-845.8052796,0.000189,2]
[361797258,1747809049831,-518.5409923,0.00018902,2]
[361797259,1747809049843,-658.65,0.00018904,2]
[361797260,1747809049855,-695.7,0.00018904,2]
[361797261,1747809049867,-612.65,0.00018904,2]
[361797262,1747809049879,-160.63,0.00018904,2]
[361797263,1747809049891,-430.0,0.00018904,2]
[361797264,1747809049904,-430.0,0.00018904,2]
[361797265,1747809049917,-430.0,0.00018904,2]
[361797266,1747809049930,-430.0,0.00018904,2]
[361797267,1747809049942,-2928.52894389,0.00019003,2]
[361797268,1747809049954,-151.0,0.00019072,2]
[361797269,1747809049967,-151.0,0.00019072,2]
[361797270,1747809049981,-151.0,0.00019072,2]
[361797271,1747809049995,-151.0,0.00019072,2]
[361797272,1747809050008,-212.832293,0.00019072,2]
[361797273,1747809050020,-212.832293,0.00019072,2]
[361797274,1747809050032,-151.0,0.00019072,2]
[361797275,1747809050043,-151.0,0.00019116,2]
[361797276,1747809050054,-215.0738,0.00019116,2]
[361797277,1747809050067,-151.0,0.00019168,2]
[361797278,1747809050080,-151.0,0.00019168,2]
[361797279,1747809050094,-151.0,0.00019168,2]
[361797280,1747809050107,-658.65,0.00019178,2]
[361797281,1747809050123,-695.7,0.00019178,2]
[361797282,1747809050138,-612.65,0.00019178,2]
[361797283,1747809050150,-430.0,0.00019178,2]
[361797284,1747809050163,-430.0,0.00019178,2]
[361797285,1747809050176,-430.0,0.00019178,2]
[361797286,1747809050189,-525.59497222,0.00019178,2]
[361797287,1747809050204,-191.894757,0.00019178,2]
[361797288,1747809050221,-363.5769684,0.0001926,2]
[361797289,1747809050235,-363.5769684,0.0001926,2]
[361797290,1747809050247,-151.0,0.00019348,2]
[361797291,1747809050260,-151.0,0.00019348,2]
[361797292,1747809050272,-151.0,0.00019348,2]
[361797293,1747809050284,-157.667132,0.00019348,2]
[361797294,1747809050296,-420.965103,0.00019348,2]
[361797295,1747809050308,-420.965103,0.00019348,2]
[361797296,1747809050319,-2928.52894389,0.00019348,2]
[361797297,1747809050332,-202.190636,0.00019452,2]
[361797298,1747809050344,-202.190636,0.00019452,2]
[361797299,1747809050356,-255.335323,0.00019452,2]
[361797300,1747809050372,-255.335323,0.00019452,2]
[361797301,1747809050384,-658.65,0.00019452,2]
[361797302,1747809050397,-695.7,0.00019452,2]
[361797303,1747809050410,-612.65,0.00019452,2]
[361797304,1747809050422,-430.0,0.00019452,2]
[361797305,1747809050435,-151.0,0.00019452,2]
[361797306,1747809050447,-430.0,0.00019452,2]
[361797307,1747809050463,-430.0,0.00019452,2]
[361797308,1747809050477,-151.0,0.00019452,2]
[361797309,1747809050488,-151.0,0.00019452,2]
[361797310,1747809050501,-160.0,0.00019523,2]
[361797311,1747809050514,-500.0,0.000196,2]
[361797312,1747809050526,-499.26774881,0.000196,2]
[361797313,1747809050538,-636.0,0.000196,2]
[361797314,1747809050550,-151.0,0.000196,2]
[361797315,1747809050563,-151.0,0.00019693,2]
[361797316,1747809050575,-151.0,0.00019693,2]
[361797317,1747809050586,-151.0,0.00019693,2]
[361797318,1747809050599,-194.666865,0.00019693,2]
[361797319,1747809050611,-194.666865,0.00019693,2]
[361797320,1747809050623,-160.191233,0.00019693,2]
[361797321,1747809050636,-160.191233,0.00019693,2]
[361797322,1747809050660,-2928.52894389,0.00019693,2]
[361797323,1747809050675,-574.04,0.000197,14]
[361797324,1747809050689,-574.0396,0.000197,14]
[361797325,1747809050704,-151.0,0.000197,2]
[361797326,1747809050719,-151.0,0.000197,2]
[361797327,1747809050733,-151.0,0.000197,2]
[361797328,1747809050747,-151.0,0.000197,2]
[361797329,1747809050761,-151.0,0.000197,2]
[361797330,1747809050774,-151.0,0.000197,2]
[361797331,1747809050787,-213.616977,0.000197,2]
[361797332,1747809050799,-658.65,0.00019726,2]
[361797333,1747809050812,-695.7,0.00019726,2]
[361797334,1747809050825,-151.0,0.00019726,2]
[361797335,1747809050838,-151.0,0.00019726,2]
[361797336,1747809050851,-612.65,0.00019726,2]
[361797337,1747809050864,-430.0,0.00019726,2]
[361797338,1747809050877,-430.0,0.00019726,2]
[361797339,1747809050888,-430.0,0.00019726,2]
[361797340,1747809050900,-363.0095415,0.00019781,2]
[361797341,1747809050912,-370.8652334,0.00019787,2]
[361797342,1747809050924,-500.0,0.00019869,2]
[361797343,1747809050935,-151.0,0.00019999,2]
[361797344,1747809050947,-151.0,0.00019999,2]
[361797345,1747809050961,-151.0,0.00019999,2]
[361797346,1747809050973,-151.0,0.00019999,2]
[361797347,1747809050984,-151.0,0.00019999,2]
[361797348,1747809050996,-1110.67251258,0.0002,2]
[361797349,1747809051008,-2000.0,0.0002,2]
[361797350,1747809051020,-183.252073,0.0002,2]
[361797351,1747809051032,-151.0,0.0002,2]
[361797352,1747809051044,-151.0,0.0002,2]
[361797353,1747809051056,-151.0,0.0002,2]
[361797354,1747809051067,-151.0,0.0002,2]
[361797355,1747809051079,-151.0,0.0002,2]
[361797356,1747809051091,-151.0,0.0002,2]
[361797357,1747809051103,-151.0,0.0002,2]
[361797358,1747809051115,-151.0,0.0002,2]
[361797359,1747809051128,-158.19,0.0002,2]
[361797360,1747809051140,-185.031523,0.0002,2]
[361797361,1747809051151,-212.832293,0.0002,2]
[361797362,1747809051379,-212.832293,0.0002,2]
[361797363,1747809051392,-151.0,0.0002,2]
[361797364,1747809051402,-155.27018733,0.0002,2]
[361797365,1747809051412,-658.65,0.0002,2]
[361797366,1747809051423,-695.7,0.0002,2]
[361797367,1747809051433,-256.896871,0.0002,2]
[361797368,1747809051443,-256.896871,0.0002,2]
[361797369,1747809051454,-612.65,0.0002,2]
[361797370,1747809051467,-319.876432,0.0002,2]
[361797371,1747809051477,-319.876432,0.0002,2]
[361797372,1747809051488,-151.0,0.0002,2]
[361797373,1747809051497,-151.0,0.0002,2]
[361797374,1747809051507,-430.0,0.0002,2]
[361797375,1747809051517,-430.0,0.0002,2]
[361797376,1747809051527,-430.0,0.0002,2]
[361797377,1747809051537,-160.0,0.0002,3]
[361797378,1747809051547,-3260.4233309,0.0002,30]
[361797379,1747809051557,-219.0,0.00020002,2]
[361797380,1747809051566,-823.0,0.00020002,2]
[361797381,1747809051576,-2928.52894389,0.00020038,2]
[361797382,1747809051586,-600.0,0.00020076,2]
[361797383,1747809051596,-504.52131937,0.00020076,2]
[361797384,1747809051606,-500.0,0.00020076,2]
[361797385,1747809051617,-500.0,0.00020076,2]
[361797386,1747809051627,-151.0,0.00020082,2]
[361797387,1747809051637,-420.965103,0.00020082,2]
[361797388,1747809051647,-420.965103,0.00020082,2]
[361797389,1747809051657,-152.701431,0.00020082,2]
[361797390,1747809051668,-151.0,0.00020082,2]
[361797391,1747809051678,-151.0,0.00020082,2]
[361797392,1747809051688,-151.0,0.00020082,2]
[361797393,1747809051698,-176.0309214,0.00020082,2]
[361797394,1747809051709,-569.9163794,0.00020082,2]
[361797395,1747809051719,-158.1465944,0.00020082,2]
[361797396,1747809051728,-176.0309214,0.00020082,2]
[361797397,1747809051738,-158.1465944,0.00020082,2]
[361797398,1747809051749,-569.9163794,0.00020082,2]
[361797399,1747809051758,-158.1465944,0.00020082,2]
[361797400,1747809051768,-176.0309214,0.00020082,2]
[361797401,1747809051778,-569.9163794,0.00020082,2]
[361797402,1747809051788,-158.1465944,0.00020082,2]
[361797403,1747809051798,-176.0309214,0.00020082,2]
[361797404,1747809051808,-569.9163794,0.00020082,2]
[361797405,1747809051818,-158.1465944,0.00020082,2]
[361797406,1747809051828,-569.9163794,0.00020082,2]
[361797407,1747809051838,-176.0309214,0.00020082,2]
[361797408,1747809051848,-357.1637639,0.00020082,2]
[361797409,1747809051858,-569.9163794,0.00020082,2]
[361797410,1747809051868,-333.4935295,0.00020082,2]
[361797411,1747809051878,-569.9163794,0.00020082,2]
[361797412,1747809051888,-569.9163794,0.00020082,2]
[361797413,1747809051897,-569.9163794,0.00020082,2]
[361797414,1747809051908,-569.9163794,0.00020082,2]
[361797415,1747809051917,-435.8070904,0.00020082,2]
[361797416,1747809051927,-500.31228992,0.00020126,2]
[361797417,1747809051937,-319.952049,0.00020187,2]
[361797418,1747809051947,-202.190636,0.00020273,2]
[361797419,1747809051959,-202.190636,0.00020273,2]
[361797420,1747809051969,-255.335323,0.00020273,2]
[361797421,1747809051978,-255.335323,0.00020273,2]
[361797422,1747809051988,-658.65,0.00020273,2]
[361797423,1747809051997,-695.7,0.00020273,2]
[361797424,1747809052008,-612.65,0.00020273,2]
[361797425,1747809052018,-430.0,0.00020273,2]
[361797426,1747809052027,-194.666865,0.00020273,2]
[361797427,1747809052036,-194.666865,0.00020273,2]
[361797428,1747809052046,-160.191233,0.00020273,2]
[361797429,1747809052056,-430.0,0.00020273,2]
[361797430,1747809052066,-160.191233,0.00020273,2]
[361797431,1747809052075,-430.0,0.00020273,2]
[361797432,1747809052086,-160.0,0.00020313,2]
[361797433,1747809052096,-212.41679935,0.00020314,3]
[361797434,1747809052107,-151.0,0.00020314,2]
[361797435,1747809052116,-151.0,0.00020314,2]
[361797436,1747809052126,-248.460636,0.00020314,2]
[361797437,1747809052136,-151.0,0.00020314,2]
[361797438,1747809052146,-151.0,0.00020314,2]
[361797439,1747809052156,-151.0,0.00020314,2]
[361797440,1747809052166,-151.0,0.00020314,2]
[361797441,1747809052175,-151.0,0.00020314,2]
[361797442,1747809052185,-170.0,0.00020333,2]
[361797443,1747809052195,-170.0,0.00020333,2]
[361797444,1747809052207,-170.0,0.00020333,2]
[361797445,1747809052217,-170.0,0.00020333,2]
[361797446,1747809052227,-2928.52894389,0.00020383,3]
[361797447,1747809052236,-151.0,0.00020383,2]
[361797448,1747809052247,-151.0,0.00020383,2]
[361797449,1747809052256,-151.0,0.00020383,2]
[361797450,1747809052266,-151.0,0.00020383,2]
[361797451,1747809052276,-151.0,0.00020383,2]
[361797452,1747809052286,-518.5409923,0.00020388,2]
[361797453,1747809052297,-271.08501383,0.00020417,2]
[361797454,1747809052307,-151.0,0.00020485,2]
[361797455,1747809052317,-223.0315306,0.00020485,2]
[361797456,1747809052327,-151.0,0.00020485,2]
[361797457,1747809052337,-212.832293,0.00020547,2]
[361797458,1747809052347,-212.832293,0.00020547,2]
[361797459,1747809052357,-658.65,0.00020547,2]
[361797460,1747809052370,-695.7,0.00020547,2]
[361797461,1747809052380,-612.65,0.00020547,2]
[361797462,1747809052390,-430.0,0.00020547,2]
[361797463,1747809052399,-174.0,0.00020547,2]
[361797464,1747809052409,-430.0,0.00020547,2]
[361797465,1747809052419,-151.0,0.00020562,2]
[361797466,1747809052429,-547.0,0.00020563,2]
[361797467,1747809052439,-404.0,0.00020563,2]
[361797468,1747809052449,-2235.0,0.00020563,2]
[361797469,1747809052461,-151.0,0.0002059,2]
[361797470,1747809052471,-420.965103,0.0002059,2]
[361797471,1747809052481,-420.965103,0.0002059,2]
[361797472,1747809052491,-306.0,0.00020603,2]
[361797473,1747809052501,-151.0,0.00020624,2]
[361797474,1747809052511,-151.0,0.00020624,2]
[361797475,1747809052521,-151.0,0.00020624,2]
[361797476,1747809052531,-1200.0,0.00020624,2]
[361797477,1747809052541,-1000.0,0.00020624,2]
[361797478,1747809052550,-1001.97392745,0.00020624,2]
[361797479,1747809052560,-2928.52894389,0.00020728,3]
[361797480,1747809052570,-151.0,0.00020821,2]
[361797481,1747809052580,-151.0,0.00020821,2]
[361797482,1747809052589,-151.0,0.00020821,2]
[361797483,1747809052599,-151.0,0.00020821,2]
[361797484,1747809052608,-658.65,0.00020821,2]
[361797485,1747809052618,-695.7,0.00020821,2]
[361797486,1747809052627,-256.896871,0.00020821,2]
[361797487,1747809052637,-256.896871,0.00020821,2]
[361797488,1747809052647,-612.65,0.00020821,2]
[361797489,1747809052656,-319.876432,0.00020821,2]
[361797490,1747809052666,-319.876432,0.00020821,2]
[361797491,1747809052676,-151.0,0.00020821,2]
[361797492,1747809052686,-151.0,0.00020821,2]
[361797493,1747809052696,-430.0,0.00020821,2]
[361797494,1747809052708,-430.0,0.00020821,2]
[361797495,1747809052719,-202.190636,0.00020904,2]
[361797496,1747809052729,-202.190636,0.00020904,2]
[361797497,1747809052739,-255.335323,0.00020904,2]
[361797498,1747809052748,-255.335323,0.00020904,2]
[361797499,1747809052758,-151.0,0.00020935,2]
[361797500,1747809052767,-151.0,0.00020935,2]
[361797501,1747809052777,-178.73372321,0.00020999,2]
[361797502,1747809052787,-425.471,0.00020999,2]
[361797503,1747809052796,-3000.0,0.00021,2]
[361797504,1747809052806,-151.0,0.00021,2]
[361797505,1747809052816,-151.0,0.00021,2]
[361797506,1747809052826,-151.0,0.00021,2]
[361797507,1747809052835,-283.85363,0.00021,2]
[361797508,1747809052845,-228.989625,0.00021,2]
[361797509,1747809052855,-3000.0,0.0002101,2]
[361797510,1747809052865,-151.0,0.0002101,2]
[361797511,1747809052874,-151.0,0.0002101,2]
[361797512,1747809052884,-151.0,0.0002101,2]
[361797513,1747809052893,-194.666865,0.0002101,2]
[361797514,1747809052903,-194.666865,0.0002101,2]
[361797515,1747809052912,-160.191233,0.0002101,2]
[361797516,1747809052921,-160.191233,0.0002101,2]
[361797517,1747809052931,-4838.694867,0.0002102,2]
[361797518,1747809052940,-212.832293,0.0002102,2]
[361797519,1747809052951,-212.832293,0.0002102,2]
[361797520,1747809052961,-151.0,0.00021053,2]
[361797521,1747809052971,-151.0,0.00021053,2]
[361797522,1747809052980,-152.039299,0.00021053,2]
[361797523,1747809052990,-151.0,0.00021072,2]
[361797524,1747809052999,-151.0,0.00021072,2]
[361797525,1747809053009,-2928.52894389,0.00021072,4]
[361797526,1747809053019,-658.65,0.00021095,2]
[361797527,1747809053029,-695.7,0.00021095,2]
[361797528,1747809053038,-612.65,0.00021095,2]
[361797529,1747809053047,-430.0,0.00021095,2]
[361797530,1747809053057,-430.0,0.00021095,2]
[361797531,1747809053067,-154.138516,0.0002112,2]
[361797532,1747809053076,-1800.0,0.00021172,2]
[361797533,1747809053086,-1500.0,0.00021172,2]
[361797534,1747809053096,-700.0,0.00021179,2]
[361797535,1747809053105,-151.0,0.00021245,2]
[361797536,1747809053115,-151.0,0.00021245,2]
[361797537,1747809053124,-151.0,0.00021245,2]
[361797538,1747809053134,-151.0,0.00021245,2]
[361797539,1747809053143,-151.0,0.00021245,2]
[361797540,1747809053152,-152.057698,0.00021245,2]
[361797541,1747809053162,-151.0,0.00021348,2]
[361797542,1747809053171,-420.965103,0.00021348,2]
[361797543,1747809053180,-420.965103,0.00021348,2]
[361797544,1747809053190,-5000.0,0.0002136,2]
[361797545,1747809053199,-5000.0,0.0002136,2]
[361797546,1747809053211,-5000.0,0.0002136,2]
[361797547,1747809053220,-5000.0,0.0002136,2]
[361797548,1747809053230,-5000.0,0.0002136,2]
[361797549,1747809053240,-5000.0,0.0002136,2]
[361797550,1747809053250,-5000.0,0.0002136,2]
[361797551,1747809053260,-5000.0,0.0002136,2]
[361797552,1747809053269,-5000.0,0.0002136,2]
[361797553,1747809053279,-5000.0,0.0002136,2]
[361797554,1747809053288,-151.0,0.0002136,2]
[361797555,1747809053298,-151.0,0.0002136,2]
[361797556,1747809053308,-151.0,0.0002136,2]
[361797557,1747809053318,-151.0,0.0002136,2]
[361797558,1747809053328,-420.965103,0.0002136,2]
[361797559,1747809053338,-420.965103,0.0002136,2]
[361797560,1747809053347,-151.0,0.0002136,2]
[361797561,1747809053357,-256.896871,0.0002136,2]
[361797562,1747809053367,-256.896871,0.0002136,2]
[361797563,1747809053379,-256.896871,0.0002136,2]
[361797564,1747809053389,-256.896871,0.0002136,2]
[361797565,1747809053398,-319.876432,0.0002136,2]
[361797566,1747809053409,-319.876432,0.0002136,2]
[361797567,1747809053419,-319.876432,0.0002136,2]
[361797568,1747809053429,-319.876432,0.0002136,2]
[361797569,1747809053438,-151.0,0.0002136,2]
[361797570,1747809053450,-151.0,0.0002136,2]
[361797571,1747809053462,-194.666865,0.0002136,2]
[361797572,1747809053472,-194.666865,0.0002136,2]
[361797573,1747809053482,-160.191233,0.0002136,2]
[361797574,1747809053492,-160.191233,0.0002136,2]
[361797575,1747809053502,-151.0,0.0002136,2]
[361797576,1747809053512,-151.0,0.0002136,2]
[361797577,1747809053521,-151.0,0.0002136,2]
[361797578,1747809053531,-241.931967,0.0002136,2]
[361797579,1747809053540,-151.0,0.00021369,2]
[361797580,1747809053550,-658.65,0.00021369,2]
[361797581,1747809053560,-695.7,0.00021369,2]
[361797582,1747809053569,-612.65,0.00021369,2]
[361797583,1747809053579,-430.0,0.00021369,2]
[361797584,1747809053588,-430.0,0.00021369,2]
[361797585,1747809053598,-2928.52894389,0.00021417,5]
[361797586,1747809053607,-202.190636,0.00021643,2]
[361797587,1747809053617,-202.190636,0.00021643,2]
[361797588,1747809053626,-255.335323,0.00021643,2]
[361797589,1747809053635,-255.335323,0.00021643,2]
[361797590,1747809053645,-658.65,0.00021643,2]
[361797591,1747809053655,-695.7,0.00021643,2]
[361797592,1747809053665,-612.65,0.00021643,2]
[361797593,1747809053674,-430.0,0.00021643,2]
[361797594,1747809053683,-194.666865,0.00021643,2]
[361797595,1747809053692,-194.666865,0.00021643,2]
[361797596,1747809053704,-160.191233,0.00021643,2]
[361797597,1747809053713,-160.191233,0.00021643,2]
[361797598,1747809053722,-201.93992102,0.00021643,2]
[361797599,1747809053731,-151.0,0.00021653,2]
[361797600,1747809053741,-151.0,0.00021653,2]
[361797601,1747809053751,-2400.0,0.0002172,2]
[361797602,1747809053760,-2000.0,0.0002172,2]
[361797603,1747809053770,-151.0,0.00021726,2]
[361797604,1747809053779,-151.0,0.00021726,2]
[361797605,1747809053788,-165.7707127,0.00021726,2]
[361797606,1747809053798,-153.0,0.00021726,2]
[361797607,1747809053808,-153.0,0.00021726,2]
[361797608,1747809053818,-153.0,0.00021726,2]
[361797609,1747809053827,-151.0,0.00021728,2]
[361797610,1747809053837,-151.0,0.00021728,2]
[361797611,1747809053847,-151.0,0.00021728,2]
[361797612,1747809053856,-151.0,0.00021753,2]
[361797613,1747809053866,-151.0,0.00021753,2]
[361797614,1747809053875,-151.0,0.00021753,2]
[361797615,1747809053884,-151.0,0.00021762,2]
[361797616,1747809053894,-151.0,0.00021762,2]
[361797617,1747809053903,-2928.52894389,0.00021762,5]
[361797618,1747809053913,-151.0,0.00021854,2]
[361797619,1747809053922,-231.28369723,0.00021854,2]
[361797620,1747809053932,-518.5409923,0.00021873,2]
[361797621,1747809053942,-1152.0,0.00021885,2]
[361797622,1747809053953,-200.85,0.00021917,2]
[361797623,1747809053963,-212.832293,0.00021917,2]
[361797624,1747809053973,-212.832293,0.00021917,2]
[361797625,1747809053983,-658.65,0.00021917,2]
[361797626,1747809053992,-615.29294404,0.00021917,2]
[361797627,1747809054002,-695.7,0.00021917,2]
[361797628,1747809054012,-612.65,0.00021917,2]
[361797629,1747809054022,-430.0,0.00021917,2]
[361797630,1747809054033,-2463.6,0.00021917,2]
[361797631,1747809054043,-151.0,0.00021918,7]
[361797632,1747809054053,-151.0,0.00021918,7]
[361797633,1747809054063,-151.0,0.00021918,7]
[361797634,1747809054074,-151.0,0.00021918,2]
[361797635,1747809054083,-420.965103,0.00021918,7]
[361797636,1747809054094,-420.965103,0.00021918,7]
[361797637,1747809054104,-500.0,0.00021918,2]
[361797638,1747809054114,-500.0,0.00021918,2]
[361797639,1747809054126,-500.0,0.00021918,2]
[361797640,1747809054136,-500.0,0.00021918,2]
[361797641,1747809054146,-500.0,0.00021918,2]
[361797642,1747809054156,-500.0,0.00021918,2]
[361797643,1747809054166,-500.0,0.00021918,2]
[361797644,1747809054176,-500.0,0.00021918,2]
[361797645,1747809054186,-500.0,0.00021918,2]
[361797646,1747809054196,-500.0,0.00021918,2]
[361797647,1747809054206,-500.0,0.00021918,2]
[361797648,1747809054215,-215.73480217,0.00021918,2]
[361797649,1747809054226,-500.0,0.00021918,2]
[361797650,1747809054235,-500.0,0.00021971,2]
[361797651,1747809054245,-160.0,0.00021972,2]
[361797652,1747809054255,-13598.18385922,0.00021973,2]
[361797653,1747809054355,-436.73,0.00021973,2]